Cogmind - Beta 15 @@@ ROGUE MODE // 2025.08.09 @ 09:24:17 Player: beans Result: Destroyed by H-55 Commando with Gauss Rifle Performance ------------- Evolutions (2) 1000 Regions Visited (4) 800 Robots Destroyed (77) 385 Value Destroyed (1428) 1428 Prototype IDs (2) 40 Alien Tech Used (0) 0 Bonus (124) 124 TOTAL SCORE: 3777 Bonus ------- High Alert Combat Kills 124 Cogmind --------- Core Integrity 0/550 Matter 246/300 Energy 100/100 System Corruption 0% Temperature Cool (0) Movement Core (50) Location -8/Materials Parts ------- > --- POWER (2) -------- (None) > --- PROPULSION (3) --- (None) > --- UTILITY (3) ------ Improved Signal Interpreter > --- WEAPON (3) ------- Heavy Assault Rifle > --- INVENTORY (5) ---- (None) Peak State ------------ > --- POWER ------------ Heavy Ion Engine > --- PROPULSION ------- Light Treads > --- UTILITY ---------- Disposable Heat Sink Small Storage Unit Improved Signal Interpreter > --- WEAPON ----------- Advanced Beam Cannon Heavy Particle Cannon Heavy Particle Cannon > --- INVENTORY -------- Beam Cannon Heavy Particle Cannon Heavy Particle Cannon Light Assault Rifle [Rating: 19] Favorites ----------- Power Heavy Ion Engine Engine Heavy Ion Engine Propulsion Light Treads Treads Light Treads Leg Aluminum Leg Utility Improved Signal Interpreter Device Heat Sink Storage Small Storage Unit Processor Improved Signal Interpreter Weapon Heavy Particle Cannon Energy Gun EM Pulse Gun Energy Cannon Heavy Particle Cannon Ballistic Gun Light Assault Rifle Launcher Rocket Launcher Build | -11 -10 -10 -9 -8 ------- Run | Yrd Mat Min Mat Mat Slots Evolved 4 | . . . 2 2 Power 1 | . . . . 1 Propulsion 1 | . . . . 1 Utility 1 | . . . 1 . Weapon 1 | . . . 1 . Parts Attached 27 | 5 1 3 15 3 Power 3 | 1 . 1 1 . Engine 3 | 1 . 1 1 . Core . | . . . . . Reactor . | . . . . . Propulsion 6 | 2 . . 4 . Treads 5 | 2 . . 3 . Leg 1 | . . . 1 . Wheel . | . . . . . Hover . | . . . . . Flight . | . . . . . Utility 4 | . . 1 3 . Device 2 | . . . 2 . Storage 1 | . . 1 . . Processor 1 | . . . 1 . Hackware . | . . . . . Protection . | . . . . . Artifact . | . . . . . Weapon 14 | 2 1 1 7 3 Energy Gun 1 | 1 . . . . Energy Cannon 5 | . . 1 4 . Ballistic Gun 3 | 1 . . 1 1 Ballistic Cannon . | . . . . . Launcher 5 | . 1 . 2 2 Special Weapon . | . . . . . Impact Weapon . | . . . . . Slashing Weapon . | . . . . . Piercing Weapon . | . . . . . Special Melee Weapon . | . . . . . Unidentified Prototypes 2 | . . . 2 . Parts Lost 20 | . 4 1 9 6 Power 2 | . 1 . 1 . Propulsion 5 | . 1 1 3 . Utility 2 | . . . 2 . Weapon 11 | . 2 . 3 6 Highest Loss Streak 4 | . 4 1 2 4 To Critical Strikes . | . . . . . Average Backups 3 | . . . 4 3 Power . | . . . . . Propulsion . | . . . . . Utility . | . . . . . Weapon 3 | . . . 4 3 Tool/Special . | . . . . . Unused Backups 2 | . . . 2 . Power . | . . . . . Propulsion . | . . . . . Utility 1 | . . . 1 . Weapon 1 | . . . 1 . Tool/Special . | . . . . . Average Slot Usage (%) 57 | . 65 36 64 24 Engine 6 | . 12 6 7 . Treads 6 | . 26 3 6 . Leg 1 | . . . 1 . Device 5 | . . . 6 . Storage 5 | . . 5 7 . Processor 9 | . . . 10 9 Energy Cannon 16 | . . 8 19 7 Ballistic Gun 1 | . 11 11 . . Launcher 4 | . 1 . 4 7 Peak Build Rating 19 | 5 5 4 19 9 Average Rating 11 | 4 4 2 13 6 On Entrance 3 | . 5 1 4 8 Naked Turns . | . . . . . Heaviest Build 32 | 8 10 12 32 10 Greatest Support 40 | 40 40 20 40 3 Greatest Overweight (x) 9 | . . 3 9 3 Average Overweight (x) 1 | . . 1 2 1 Largest Inventory Capacity 8 | 5 5 8 8 5 Average Capacity 6 | 5 5 6 6 5 Most Carried 7 | 2 1 1 7 4 Average Carried 3 | . . . 4 2 Final Capacity 8 | 5 5 8 5 5 Final Carried 4 | . 1 . 4 . Class Distribution -------------------- 85% | Mutant 14% | Gunner Dominant Class ---------------- Mutant | -10/Materials Mutant | -10/Mines Mutant | -9/Materials Mutant | -8/Materials Resources | -11 -10 -10 -9 -8 ----------- Run | Yrd Mat Min Mat Mat Matter Collected 1091 | 213 1 99 601 177 Remotely . | . . . . . Salvage Created 1840 | . 13 110 1386 331 Parts 143 | . 2 8 103 30 Haulers Intercepted 6 | . . . 6 . Recyclers Shooed 2 | . . . 2 . Parts Field Recycled . | . . . . . Retrieved Matter . | . . . . . Parts Self-Destructed . | . . . . . Prevented . | . . . . . Kills | -11 -10 -10 -9 -8 ------- Run | Yrd Mat Min Mat Mat Combat Hostiles Destroyed 38 | . 3 3 24 8 Guns 2 | . . 2 . . Cannons 19 | . . 1 16 2 AOE 17 | . 3 . 8 6 Classes Destroyed 12 | . 1 1 9 1 Worker 10 | . . . 9 1 Builder 13 | . . . 7 6 Tunneler 1 | . . . 1 . Hauler 6 | . . . 6 . Recycler 3 | . . 1 1 1 Mechanic 1 | . . . 1 . Operator 1 | . . . . 1 Watcher 4 | . . . 4 . Swarmer 16 | . 3 3 6 4 Grunt 13 | . . . 10 3 Brawler 1 | . . . 1 . Sentry 8 | . . . 7 1 Best Kill Streak 12 | . 3 4 11 12 Combat Bots Only 4 | . 3 3 4 4 Max Kills in Single Turn 4 | . 2 1 3 4 Gunslinging . | . . . . . Exploded 2 | . 2 . 2 2 Melee . | . . . . . Uniques/NPCs Destroyed . | . . . . . Combat | -11 -10 -10 -9 -8 -------- Run | Yrd Mat Min Mat Mat Hostile Shots Fired 274 | . 8 67 109 90 Missed 69 | . 2 12 28 27 Hits 205 | . 6 55 81 63 Projectile 205 | . 6 55 81 63 Critical Strikes 6 | . . 1 . 5 Damage Taken 3194 | . 454 438 1255 1047 Core 1027 | . 48 200 221 558 Absorbed by Shields . | . . . . . Core Remaining (%) 48 | 100 . . 44 . Volleys Fired 159 | . 2 14 110 33 Largest 3 | . 2 2 3 2 Hottest 225 | . 70 80 225 143 Shots Fired 247 | . 4 18 186 39 Gun 20 | . 2 12 . 6 Cannon 171 | . . 6 150 15 Launcher 56 | . 2 . 36 18 Special . | . . . . . Kinetic 18 | . . 12 . 6 Thermal 171 | . . 6 150 15 Explosive 56 | . 2 . 36 18 Electromagnetic 2 | . 2 . . . Robot Hit Streak 8 | . 1 5 7 8 Robot Miss Streak 4 | . 3 3 3 4 Penetration Max . | . . . . . Secondary Targets . | . . . . . Shots Hit Robots 112 | . 1 10 81 20 Core Hits 98 | . 3 5 63 27 Critical Kills 1 | . . . 1 . Critical Parts Destroyed 1 | . . . . 1 Critical Strikes 2 | . . . 1 1 Meltdown 1 | . . . 1 . Destroy 1 | . . . . 1 Melee Attacks . | . . . . . Impact . | . . . . . Slashing . | . . . . . Piercing . | . . . . . Sneak Attacks . | . . . . . Combat Hostiles . | . . . . . Follow-up Attacks . | . . . . . Damage Inflicted 4710 | . 174 99 3182 1255 Guns 153 | . 10 48 . 95 Cannons 2098 | . . 51 1917 130 Explosions 2459 | . 164 . 1265 1030 Melee . | . . . . . Ramming . | . . . . . Kinetic 143 | . . 48 . 95 Thermal 2098 | . . 51 1917 130 Explosive 2459 | . 164 . 1265 1030 Electromagnetic 10 | . 10 . . . Impact . | . . . . . Slashing . | . . . . . Piercing . | . . . . . Highest Corruption 13 | . 13 13 . . Average Corruption 13 | . 13 13 . . Corruption Purged . | . . . . . Corruption Blocked . | . . . . . Effects 8 | . . 8 . . Message Errors 1 | . . 1 . . Matter Fused 2 | . . 2 . . Energy Discharges 1 | . . 1 . . Data Loss (minor) 2 | . . 2 . . Weapon Failures 2 | . . 2 . . Overload Shots . | . . . . . Overflow Damage 280 | . 26 14 200 40 Projectiles 37 | . . 14 18 5 Explosions 243 | . 26 . 182 35 Melee . | . . . . . Knockbacks . | . . . . . Impact . | . . . . . Kinetic . | . . . . . Secondary . | . . . . . Self-Inflicted Damage 498 | . 77 . 292 129 Shots 15 | . 2 . 7 6 Rammed . | . . . . . Targets Rammed . | . . . . . Kicked . | . . . . . Crushed . | . . . . . Highest Temperature 497 | . 9 35 497 108 Average Temperature 101 | . 5 17 114 31 Received Heat Transfer 831 | . . 36 363 432 Effects 7 | . . . 7 . Shutdowns 1 | . . . 1 . Energy Bleed 1 | . . . 1 . Interference 2 | . . . 2 . Matter Decay 2 | . . . 2 . Damage (minor) 1 | . . . 1 . Siege Activations . | . . . . . Martial Activations . | . . . . . Shielding Activations . | . . . . . Robots Disrupted . | . . . . . Combat Hostiles . | . . . . . Robots Corrupted . | . . . . . Combat Hostiles . | . . . . . Parts Fried . | . . . . . Impact Corruptions . | . . . . . Robots Melted 1 | . . . 1 . Combat Hostiles . | . . . . . Parts Melted 9 | . . 1 8 . Heat Transferred 3182 | . . 111 2849 222 Parts Sabotaged . | . . . . . Parts Stolen . | . . . . . Parts Stripped . | . . . . . Power Chain Reactions . | . . . . . Alert | -11 -10 -10 -9 -8 ------- Run | Yrd Mat Min Mat Mat Maximum Alert Level 3 | . . . 3 2 Low Security (%) 39 | 100 100 100 36 . Level 1 34 | . . . 39 36 Level 2 14 | . . . 8 63 Level 3 11 | . . . 14 . Level 4 . | . . . . . Level 5 . | . . . . . High Security . | . . . . . Max Security . | . . . . . Peak Influence 773 | . 70 65 773 484 Initial 315 | . . 11 13 315 Average 276 | . 7 36 297 396 Influence Increases 1774 | . 80 75 1290 329 Destroy 0b10 Robot/C 760 | . 60 60 480 160 Destroy 0b10 Robot/NC 195 | . . 5 145 45 Destroy Leader 190 | . 10 10 140 30 Disable Machine 240 | . . . 210 30 Destroy Structure 389 | . 10 . 315 64 Influence Decreases 1320 | . 50 70 577 623 Entered New Map 474 | . . 19 22 433 Time Decay 655 | . 10 50 465 130 Lost Part 191 | . 40 1 90 60 Squads Dispatched 3 | . . . . 3 Investigation 1 | . . . . 1 Extermination . | . . . . . Reinforcement 1 | . . . . 1 Assault . | . . . . . Garrison 1 | . . . . 1 Intercept . | . . . . . Searches Triggered . | . . . . . Construction Impeded 1 | . . . . 1 Haulers Reinforced . | . . . . . Active Scanning Responses . | . . . . . Cargo Convoy Interrupts . | . . . . . Stealth | -11 -10 -10 -9 -8 --------- Run | Yrd Mat Min Mat Mat Distress Signals 5 | . . . 4 1 Communications Jammed . | . . . . . Distress Signals . | . . . . . Times Spotted 56 | . 3 5 34 14 Peak Tracking Total 6 | . 3 3 3 6 Tactical Retreats . | . . . . . Traps | -11 -10 -10 -9 -8 ------- Run | Yrd Mat Min Mat Mat Traps Triggered . | . . . . . Indirectly . | . . . . . Trap Hack Attempts . | . . . . . Triggered . | . . . . . Disarmed . | . . . . . Reprogrammed . | . . . . . Reused . | . . . . . Traps Extracted . | . . . . . Installed . | . . . . . Triggered . | . . . . . Machines | -11 -10 -10 -9 -8 ---------- Run | Yrd Mat Min Mat Mat Machines Disabled 16 | . . . 14 2 Max in Single Turn 3 | . . . 3 1 Machines Repaired . | . . . . . Machines Dismantled . | . . . . . Machines Sabotaged . | . . . . . Overloaded Fab Kills . | . . . . . Hacking | -11 -10 -10 -9 -8 --------- Run | Yrd Mat Min Mat Mat Machines Accessed 1 | . . . . 1 Terminals . | . . . . . Fabricators . | . . . . . Repair Stations . | . . . . . Recycling Units . | . . . . . Scanalyzers . | . . . . . Garrison Access 1 | . . . . 1 Total Hacks 5 | . . . . 5 Successful . | . . . . . Failed 5 | . . . . 5 Catastrophic . | . . . . . Database Lockouts . | . . . . . Manual . | . . . . . Terminals . | . . . . . Fabricators . | . . . . . Repair Stations . | . . . . . Recycling Units . | . . . . . Scanalyzers . | . . . . . Garrison Access 5 | . . . . 5 Terminal Hacks . | . . . . . Fabricator Hacks . | . . . . . Repair Station Hacks . | . . . . . Recycling Unit Hacks . | . . . . . Scanalyzer . | . . . . . Garrison Access Hacks . | . . . . . Unauthorized Hacks . | . . . . . Terminals . | . . . . . Fabricators . | . . . . . Repair Stations . | . . . . . Recycling Units . | . . . . . Scanalyzers . | . . . . . Garrison Access . | . . . . . Data Cores Recovered . | . . . . . Used . | . . . . . Hacking Detections 1 | . . . . 1 Full Trace Events 1 | . . . . 1 Feedback Events . | . . . . . Feedback Blocked . | . . . . . Robot Schematics Acquired . | . . . . . Robots Built . | . . . . . Authchips . | . . . . . Time . | . . . . . Total Robot Build Rating . | . . . . . Part Schematics Acquired . | . . . . . Parts Built . | . . . . . Authchips . | . . . . . Time . | . . . . . Total Part Build Rating . | . . . . . Parts Repaired . | . . . . . Time . | . . . . . Parts Recycled . | . . . . . Recycled Matter . | . . . . . Retrieved Matter . | . . . . . Retrieved Components . | . . . . . Parts Scanalyzed . | . . . . . Part Schematics Acquired . | . . . . . Parts Damaged . | . . . . . Bothacking | -11 -10 -10 -9 -8 ------------ Run | Yrd Mat Min Mat Mat Used RIF Installer . | . . . . . Robots Hacked . | . . . . . Non-combat . | . . . . . Combat . | . . . . . Robot Hacks Applied . | . . . . . Relay Couplers Released . | . . . . . Fabnet Peak Effective % . | . . . . . Robots Rewired . | . . . . . Allies Hacked . | . . . . . Hacks Repelled . | . . . . . Allies | -11 -10 -10 -9 -8 -------- Run | Yrd Mat Min Mat Mat Total Allies . | . . . . . Largest Group . | . . . . . Highest-Rated Group . | . . . . . Highest-Rated Ally . | . . . . . Total Orders . | . . . . . Ally Attacks . | . . . . . Total Damage . | . . . . . Kills . | . . . . . Allies Corrupted . | . . . . . Allies Melted . | . . . . . Intel | -11 -10 -10 -9 -8 ------- Run | Yrd Mat Min Mat Mat Active Infowar (turns) . | . . . . . Robot Analysis Total . | . . . . . Derelict Logs Recovered . | . . . . . Drone Launches . | . . . . . Drone Recoveries . | . . . . . Exploration | -11 -10 -10 -9 -8 ------------- Run | Yrd Mat Min Mat Mat Turns Passed 2269 | 73 95 102 1723 276 Spaces Moved 869 | 44 55 43 595 132 Core 385 | 6 . 33 214 132 Treads 408 | 38 55 10 305 . Legs 76 | . . . 76 . Wheels . | . . . . . Hover . | . . . . . Flight . | . . . . . Fastest Speed 50 | 50 160 50 160 50 Average Speed 204 | 145 160 151 230 144 Slowest Speed 500 | 160 160 200 500 200 Overloaded Moves . | . . . . . Propulsion Burnouts . | . . . . . Robots Hopped . | . . . . . Potential Cave-ins . | . . . . . Cave-ins Triggered 1 | . 1 . . . Exploration Rate (%) 23 | 3 15 16 64 20 Regions Visited 4 Branch Regions 1 Pre-discovered Areas . | . . . . . Known Exits Taken 1 | . . . 1 . Unknown Exits Taken 3 | 1 1 1 . . Scrap Searched 1 | . . 1 . . Spaces Dug 18 | . . . 18 . Terrain Destroyed 445 | . 10 . 358 77 Melee . | . . . . . Projectile 53 | . . . 51 2 AOE 392 | . 10 . 307 75 Terrain Rammed . | . . . . . Walls Destroyed . | . . . . . Machines Disabled . | . . . . . Actions | -11 -10 -10 -9 -8 --------- Run | Yrd Mat Min Mat Mat Total 1122 | 53 58 63 770 178 Wait 29 | . . . 22 7 Move 865 | 43 54 42 594 132 Hop . | . . . . . Pick Up 28 | 5 1 3 18 1 Fast Attach 1 | . . . 1 . Attach 29 | 5 . 4 15 5 Detach 4 | . . . 4 . Swap 1 | . 1 . . . Drop 6 | . . . 6 . Fire 159 | . 2 14 110 33 Melee . | . . . . . Ram . | . . . . . Kick . | . . . . . Crush . | . . . . . Escape Stasis . | . . . . . Rewire . | . . . . . Trap . | . . . . . Miscellaneous . | . . . . . Route ------- -11/Scrapyard -10/Materials -10/Mines -9/Materials -8/Materials History --------- Turn | Location | Event 5 | -11/Scrapyard | Discovered new exit (range 15) 74 | -11/Scrapyard | Entered Materials 146 | -10/Materials | Discovered new exit (range 5) 156 | -10/Materials | Crushed by falling debris 156 | -10/Materials | System corruption reached 10% 169 | -10/Materials | Entered Mines 187 | -10/Mines | Lost 4 parts (1p1n2w) 187 | -10/Mines | Core integrity fell below 50% 211 | -10/Mines | Core integrity fell below 20% 245 | -10/Mines | Discovered new exit (range 8) 271 | -10/Mines | Entered Materials 271 | -9/Materials | Evolved 2 slots: Utility x1, Weapon x1 312 | -9/Materials | Build established: Mutant 1786 | -9/Materials | Core integrity fell below 50% 1986 | -9/Materials | Discovered new exit (range 3) 1992 | -9/Materials | Identified exit to Materials 1994 | -9/Materials | Entered another Materials area 1994 | -8/Materials | Evolved 2 slots: Power x1, Propulsion x1 2165 | -8/Materials | Garrison activated, responded to threat 2203 | -8/Materials | Core integrity fell below 50% 2229 | -8/Materials | Lost 4 parts (4w) 2241 | -8/Materials | Core integrity fell below 20% 2270 | -8/Materials | Destroyed by H-55 Commando with Gauss Rifle Last Messages --------------- G-47 Trooper destroyed. Destroyed Lgt. Nuclear Core. G-47 Trooper destroyed. U-05 Engineer lays Concrete. U-05 Engineer builds a Wall. Penetrated by Slug. Grenade Launcher destroyed. G-47 Trooper destroyed. U-05 Engineer lays Concrete. Penetrated by Slug. Beam Cannon destroyed. Extracted 100 matter. Penetrated by Slug. Critical hit (Burn: +37). Slug penetrates Wall. W-25 Informer sends out distress signal. Critical hit (Burn: +37). G-47 Trooper suffers critical hit (Destroy). Destroyed Imp. Heat Sink. Slug penetrates Wall. Map ----- +----------------------------------------------------+ | ?????????????????????????????????????????????????? | | ?????????????????????????????????????????????????? | | ?????????????????????????????????????????????????? | | ?????????????????????????????????????????????????? | | ?????????????????????????????????????????????????? | | ?????????????????????????????????????????????????? | | ?????????????????????????????????????????????????? | | ?????????????????????????????????????????????????? | | ?????????????????????????????????????????????????? | | ?????????????????????????????????????????????????? | | ?????????????????????????????????????????????????? | | ?????????????????????????????????????????????????? | | ?????????????????????????????????????????????????? | | ?????????????????????????????????????????????????? | | ?????????????????????????????????????????????????? | | ?????????????????????????????????????????????????? | | ?????????????????????????????????????????????????? | | ?????????????????????????????????????????????????? | | ?????????????????????????????????????????????????? | | ?????????????????????????????????????????????????? | | ?????????????????????????????????????????????????? | | ?????????????????????????????????????????????????? | | ????????????????????######???????????????????????? | | ???????????????????##!!!!##??????????????????????? | | ???????????????????#! gg !#??????????????????????? | | ???????????????????# g @#??????????????????????? | | ???????????????##### h####??????????????????????? | | ???????????????# #?????????????????????????? | | ???????????????# #?????????????????????????? | | ???????# ####### ##????????????????????????? | | ?????? #????????????????????????? | | ?????? #????????????????????????? | | ?????? ###########+##???????????? | | ???????######+####### ??????????? | | ????????????????????# ??????????? | | ????????????????????# ??????????? | | ????????????????????# ########## #???????????? | | ????????????????????# #????????????????????????? | | ????????????????????# #????????????????????????? | | ???????????########## #????????????????????????? | | ???????????# # #????????????????????????? | | ???????????# # #????????????????????????? | | ???????????# #????????????????????????? | | ?????####### #????????????????????????? | | ??? / #????????????????????????? | | ??????###### #????????????????????????? | | ???????????# #????????????????????????? | | ?????????### % ####????????????????????????? | | ???#"""### ! #???????????????????????????? | | ####"Y"#T# ####???????????????????????????? | +----------------------------------------------------+ Best States ------------- Heat Dissipation 38 Coolant Potential 50 Energy Generation 14 Energy Capacity 280 Matter Stores 300 Matter Capacity 300 Sight Range 16 Terrain Scan Density 10 Evasion (%) 50 Recoil Reduction 2 Item Schematics ----------------- None Robot Schematics ------------------ None Fabricated ------------ Nothing Repaired ---------- Nothing Alien Tech Used ----------------- None Achievements -------------- None Challenges ------------ None Game ------ Seed OvertunedThermicExtractor Manual? 0 Play Time 00:18:34 Cumulative 85.0 hours Start 2025.08.09 @ 09:08:26 End 2025.08.09 @ 09:24:17 Sessions 1 Manual Loads 0 Difficulty Rogue Special Mode None Game No. 335 Rogue 335 Adventurer 0 Explorer 0 Win Type - Total 0 Types 0/0/0/0/0/0/0/0/0/0 Lore% 36 Gallery% 36 Achievement% 30 Wizard Run 0 Options --------- Layout 2 ASCII 0 Keyboard 0 Movement Mouse Keybinds 0 Fullscreen 2 Font 24/Smallcaps Map View 50x44 Zoom Use 0% Tactical HUD 0 Map Filters NONE Filters NONE Steam 1 RUN: 40f1a496-89bf-46a9-800b-a54338d58278